Cogmind - Beta 14 @@@ ROGUE MODE // 2024.10.04 @ 22:34:56 Player: leiavoia Result: Escaped! Performance ------------- Evolutions (9) 4500 Regions Visited (29) 5800 Robots Destroyed (199) 995 Value Destroyed (7668) 7668 Prototype IDs (75) 1500 Alien Tech Used (1) 200 Bonus (12623) 12623 TOTAL SCORE: 33286 Bonus ------- High Alert Combat Kills 103 Follower Combat Kills 2845 Network Hubs Disabled 200 Aligned with FarCom 300 Met Data Miner 300 Met Zhirov 300 Met Warlord at Base 500 MAIN.C Attacked Warlord 500 Warlord Defense Kills 220 Built Enhanced Grunts 300 A7 Reached Mainframe 300 Met R17 at Cetus 500 Met R17 at Research 2000 Met Warlord at Command 2000 Win 3000 Friendly Fire -745 Cogmind --------- Core Integrity 368/1600 Matter 154/300 Energy 349/350 System Corruption 9% Temperature Cool (0) Movement Rolling (145) Ox3 Location To Epsilon Eridani Parts ------- > --- POWER (1) -------- Reinforced Quantum Reactor > --- PROPULSION (2) --- Medium Treads Compact Wheel > --- UTILITY (20) ----- Large Storage Unit Advanced Terrain Scan Processor Improved Hacking Suite Improved Hacking Suite Advanced Hacking Suite > --- WEAPON (2) ------- Railgun Compact Linear Accelerator > --- INVENTORY (15) --- Medium Treads Cooled Aerolev Unit Cooled Antigrav System Combat Antigrav System High-capacity Storage Unit Point Defense Array Transdimensional Reconstructor Compact HERF Cannon Heavy Gauss Cannon Light Antimatter Cannon Great Maul Plasma Lance Peak State ------------ > --- POWER ------------ Cooled Antimatter Reactor > --- PROPULSION ------- Armored Huge Wheel > --- UTILITY ---------- Improved Cooling System High-capacity Storage Unit Improved Terrain Scanner Advanced Terrain Scan Processor Improved Kinecellerator Advanced Weapon Cycler Advanced Transmission Jammer Cloak of Protection Improved Propulsion Shielding Layered Medium Armor Plating Advanced Shield Generator Improved Hacking Suite Improved Hacking Suite Advanced Hacking Suite Advanced Hacking Suite Advanced Hacking Suite Improved System Shield Improved System Shield Improved System Shield Improved Trap Extractor > --- WEAPON ----------- Heavy Gauss Cannon Compact Linear Accelerator > --- INVENTORY -------- Reinforced Quantum Reactor Armored Wheel Armored Wheel High-density Centrium Wheel Cooled Aerolev Unit Cooled Antigrav System Combat Antigrav System Large Storage Unit Point Defense Array Transdimensional Reconstructor Compact HERF Cannon Heavy Phase Cannon Enhanced Nova Cannon Light Antimatter Cannon Neutron Missile Launcher Advanced Micro-nuke Launcher Great Maul [Rating: 147] Favorites ----------- Power Quantum Reactor Engine Ion Engine Power Core Light Nuclear Core Reactor Quantum Reactor Propulsion Armored Wheel Treads Medium Treads Leg Aluminum Leg Wheel Armored Wheel Hover Unit Aerolev Unit Flight Unit Improved VTOL Module Utility Improved System Shield Device Improved Cooling System Storage Large Storage Unit Processor Advanced Terrain Scan Processor Hackware Improved System Shield Protection Centrium Medium Armor Plating Weapon Heavy Phase Cannon Energy Gun Medium Laser Energy Cannon Heavy Phase Cannon Ballistic Gun Advanced KE Penetrator Ballistic Cannon Heavy Gauss Cannon Launcher Heavy Rocket Launcher Impact Weapon Heavy Flail Build | -11 -10 -10 -10 -9 -8 -7 -7 -7 -7 -6 -6 -6 -6 -6 -6 -5 -5 -5 -5 -4 -4 -4 -4 -4 -3 -3 -2 -1 -1 ------- Run | Yrd Mat Min Exi Min Mat Fac Low Low Dat Pro Fac Ext Cet Arc Hub Fac Upp Upp War Pro Fac Upp Upp Zhi Pro Res Res Acc Com Slots Evolved 18 | . . . . . 4 2 . . . . 2 . . . . 2 . . . . 2 . . . . 2 2 2 . Power . | . . . . . . . . . . . . . . . . . . . . . . . . . . . . . . Propulsion . | . . . . . . . . . . . . . . . . . . . . . . . . . . . . . . Utility 18 | . . . . . 4 2 . . . . 2 . . . . 2 . . . . 2 . . . . 2 2 2 . Weapon . | . . . . . . . . . . . . . . . . . . . . . . . . . . . . . . Parts Attached 434 | 7 22 5 . 11 33 26 21 12 1 24 29 24 5 11 . 17 18 6 11 11 13 3 15 8 12 29 12 12 36 Power 31 | 1 3 1 . 1 2 4 2 . . . 3 5 1 . . . . . . . . . . 1 . 3 . 1 3 Engine 17 | 1 3 1 . 1 2 1 2 . . . 3 3 . . . . . . . . . . . . . . . . . Core 5 | . . . . . . 3 . . . . . 2 . . . . . . . . . . . . . . . . . Reactor 9 | . . . . . . . . . . . . . 1 . . . . . . . . . . 1 . 3 . 1 3 Propulsion 37 | 2 4 1 . 4 6 4 . . . . 1 1 . . . . . . 2 . 4 . . . . 3 . . 5 Treads 2 | . . . . . . . . . . . . . . . . . . . . . 1 . . . . . . . 1 Leg 12 | 2 4 1 . 4 1 . . . . . . . . . . . . . . . . . . . . . . . . Wheel 20 | . . . . . 3 4 . . . . 1 1 . . . . . . 1 . 3 . . . . 3 . . 4 Hover 2 | . . . . . 1 . . . . . . . . . . . . . 1 . . . . . . . . . . Flight 1 | . . . . . 1 . . . . . . . . . . . . . . . . . . . . . . . . Utility 220 | 2 6 2 . 3 17 11 12 9 . 16 18 8 3 10 . 13 15 2 7 7 4 1 10 5 4 14 4 6 11 Device 141 | 1 3 2 . 2 9 5 9 8 . 12 13 3 . 4 . 9 11 2 5 6 3 1 7 1 4 7 3 3 8 Storage 11 | 1 2 . . 1 1 1 . . . . . . . . . 1 1 . . . . . . 1 . . . 1 1 Processor 8 | . . . . . 2 1 . . . 2 . . . . . 1 1 . . . . . . . . 1 . . . Hackware 11 | . . . . . 1 . . . . . . . . 4 . . . . . . . . . . . 2 1 2 1 Protection 49 | . 1 . . . 4 4 3 1 . 2 5 5 3 2 . 2 2 . 2 1 1 . 3 3 . 4 . . 1 Artifact . | . . . . . . . . . . . . . . . . . . . . . . . . . . . . . . Weapon 146 | 2 9 1 . 3 8 7 7 3 1 8 7 10 1 1 . 4 3 4 2 4 5 2 5 2 8 9 8 5 17 Energy Gun 2 | 1 1 . . . . . . . . . . . . . . . . . . . . . . . . . . . . Energy Cannon 33 | . . . . . . . . . . 4 2 3 . . . 2 1 1 . 1 2 1 2 1 2 5 . 1 5 Ballistic Gun 28 | 1 4 1 . 2 4 2 2 2 1 . . 1 1 . . 1 1 1 . 1 . . . . 2 . . . 1 Ballistic Cannon 24 | . . . . 1 . . . . . . . 3 . . . . . 1 . . 1 1 1 . 3 1 3 3 6 Launcher 28 | . 1 . . . 2 3 3 . . 2 1 1 . . . . . 1 1 1 2 . 2 . 1 1 2 . 4 Special Weapon . | . . . . . . . . . . . . . . . . . . . . . . . . . . . . . . Impact Weapon 31 | . 3 . . . 2 2 2 1 . 2 4 2 . 1 . 1 1 . 1 1 . . . 1 . 2 3 1 1 Slashing Weapon . | . . . . . . . . . . . . . . . . . . . . . . . . . . . . . . Piercing Weapon . | . . . . . . . . . . . . . . . . . . . . . . . . . . . . . . Special Melee Weapon . | . . . . . . . . . . . . . . . . . . . . . . . . . . . . . . Unidentified Prototypes 23 | . . 1 . 1 2 . . . . . 1 . 2 . . . . . 4 . 2 . 1 4 . 3 2 . . Corrupted Parts 3 | . . . . 2 . . . . . . . . . . . . . . . 1 . . . . . . . . . System Corruption 18 | . . . . 12 . . . . . . . . . . . . . . . 6 . . . . . . . . . Parts Lost 49 | . 2 . . 2 5 3 . . . . 1 . . . . . . 1 . . . . . . 2 . . 2 31 Power 4 | . . . . . 1 . . . . . 1 . . . . . . . . . . . . . . . . 1 1 Propulsion 5 | . . . . 1 . . . . . . . . . . . . . . . . . . . . . . . . 4 Utility 33 | . 1 . . . 3 3 . . . . . . . . . . . 1 . . . . . . 2 . . 1 22 Weapon 7 | . 1 . . 1 1 . . . . . . . . . . . . . . . . . . . . . . . 4 Highest Loss Streak 18 | . 1 . . 2 3 3 . . . . 1 . . . . . . 1 . . . . . . 1 . . 1 18 To Critical Strikes . | . . . . . . . . . . . . . . . . . . . . . . . . . . . . . . Average Slot Usage (%) 92 | . 96 100 100 99 96 92 100 100 92 98 97 92 86 85 86 87 87 87 87 88 89 89 89 80 90 89 90 90 72 Engine 4 | . 14 14 14 14 8 . 2 7 7 7 6 3 1 . . . . . . . . . . . . . . . . Reactor 2 | . . . . . . . . . . . . . 4 6 6 5 5 5 5 5 5 5 5 5 5 3 4 4 3 Leg 5 | . 28 28 28 28 7 . . . . . . . . . . . . . . . . . . . . . . . . Wheel 6 | . . . . . 10 14 15 15 15 15 13 12 6 6 6 5 5 5 5 5 5 5 5 5 5 4 4 4 5 Device 20 | . 7 14 14 13 18 20 29 30 30 26 24 23 20 15 13 16 22 16 18 18 26 26 25 21 22 22 20 20 15 Storage 7 | . 14 14 14 13 9 7 7 7 7 7 6 6 6 6 6 5 5 5 5 5 5 5 5 5 5 4 4 4 4 Processor 6 | . . . . . 6 8 7 7 7 12 13 13 13 12 6 10 11 11 8 5 5 5 5 5 5 4 4 4 4 Hackware 13 | . . . . . 8 7 7 7 7 7 6 6 6 18 26 23 23 23 23 23 21 21 21 21 21 21 26 30 26 Protection 7 | . 3 . . . 8 8 7 7 7 4 12 8 13 5 6 5 . 5 5 9 9 10 10 14 15 16 17 15 5 Energy Cannon 2 | . . . . . . . . . . 3 1 2 6 6 6 4 5 1 5 6 1 4 3 . 2 2 . 2 1 Ballistic Gun 6 | . 21 21 28 14 6 6 7 7 . 1 . . 1 4 . 1 4 4 3 2 2 . . . 3 2 . . . Ballistic Cannon 2 | . . . . 13 5 . . . . . . 1 4 . . . . 3 . . . 4 6 . 2 . 5 1 3 Impact Weapon 3 | . 3 . . . 6 6 6 7 7 8 10 8 . 1 6 4 . . 1 . 5 . . 2 . 1 1 3 1 Peak Build Rating 147 | 9 10 16 12 25 43 43 53 53 48 57 67 71 90 90 86 104 109 104 109 113 129 121 128 119 124 131 136 144 147 Average Rating 74 | 6 8 10 11 17 32 37 46 47 43 50 57 64 81 86 86 97 105 102 103 111 117 120 124 107 121 121 130 136 110 On Entrance 74 | . 9 10 11 12 25 31 39 49 48 48 57 61 71 90 86 86 101 102 102 109 104 118 121 119 115 122 116 129 130 Naked Turns . | . . . . . . . . . . . . . . . . . . . . . . . . . . . . . . Heaviest Build 140 | 12 31 31 30 38 43 50 55 55 50 79 86 79 88 85 74 104 104 105 112 112 111 118 129 116 130 138 140 130 119 Greatest Support 49 | 20 20 20 20 40 49 24 24 24 24 24 24 28 28 28 28 28 28 28 28 28 28 28 28 28 28 32 28 28 32 Greatest Overweight (x) 4 | 1 1 1 1 1 2 3 2 2 2 3 3 3 3 3 2 3 3 3 3 3 4 4 4 4 4 4 4 4 4 Average Overweight (x) 2 | . . 1 1 . . 1 1 1 1 1 2 2 2 2 2 2 3 3 3 3 3 3 3 3 4 3 4 3 2 Largest Inventory Capacity 20 | 8 15 15 15 15 15 15 15 15 15 15 15 15 15 15 15 20 20 20 20 20 20 20 20 20 20 20 20 20 20 Average Capacity 17 | 7 13 15 15 14 14 15 15 15 15 15 15 15 15 15 15 19 20 20 20 20 20 20 20 20 20 20 20 20 18 Most Carried 20 | 5 15 15 15 15 15 15 15 15 15 15 15 15 15 15 15 20 20 20 20 20 20 20 20 20 20 20 20 20 20 Average Carried 16 | 2 13 14 14 14 14 14 14 14 15 15 14 14 14 14 15 16 19 18 19 19 19 20 19 19 18 19 19 19 16 Final Capacity 20 | 8 15 15 15 15 15 15 15 15 15 15 15 15 15 15 15 20 20 20 20 20 20 20 20 20 20 20 20 20 15 Final Carried 20 | 5 15 15 15 15 15 15 15 15 15 15 15 15 15 15 15 20 20 19 20 20 20 20 20 20 17 20 20 20 12 Class Distribution -------------------- 27% | Hacker-Mutant 15% | Assassin 15% | Scavenger-Mutant 9% | Mutant 5% | Hacker-Skirmisher 5% | Wizard-Assassin 3% | Hacker-Assassin 3% | Gladiator 3% | Wizard-Skirmisher 3% | Commander-Mutant Dominant Class ---------------- Mutant | -10/Materials Scavenger-Mutant | -10/Mines Scavenger-Mutant | -10/Exiles Scavenger-Mutant | -9/Mines Scavenger-Mutant | -8/Materials Assassin | -7/Factory Assassin | -7/Lower Caves Assassin | -7/Lower Caves Assassin | -7/Data Miner Assassin | -6/Proximity Caves Infiltrator-Gladiator | -6/Factory Commander-Mutant | -6/Extension Scavenger-Mutant | -6/Cetus Commander-Mutant | -6/Archives Hacker-Assassin | -6/Hub_04(d) Hacker-Mutant | -5/Factory Hacker-Skirmisher | -5/Upper Caves Hacker-Mutant | -5/Upper Caves Hacker-Mutant | -5/Warlord Hacker-Mutant | -4/Proximity Caves Hacker-Assassin | -4/Factory Hacker-Mutant | -4/Upper Caves Hacker-Mutant | -4/Upper Caves Hacker-Mutant | -4/Zhirov Hacker-Mutant | -3/Proximity Caves Hacker-Mutant | -3/Research Wizard-Skirmisher | -2/Research Wizard-Assassin | -1/Access Wizard-Skirmisher | -1/Command Resources | -11 -10 -10 -10 -9 -8 -7 -7 -7 -7 -6 -6 -6 -6 -6 -6 -5 -5 -5 -5 -4 -4 -4 -4 -4 -3 -3 -2 -1 -1 ----------- Run | Yrd Mat Min Exi Min Mat Fac Low Low Dat Pro Fac Ext Cet Arc Hub Fac Upp Upp War Pro Fac Upp Upp Zhi Pro Res Res Acc Com Matter Collected 8408 | 289 380 251 . 206 1024 82 605 265 . 267 408 277 219 299 . 184 171 195 90 150 176 187 590 87 395 356 343 142 770 Remotely 160 | . . . . . 160 . . . . . . . . . . . . . . . . . . . . . . . . Salvage Created 8089 | 143 645 101 . 130 1225 189 322 172 . 170 492 99 72 281 46 171 48 164 78 453 240 69 620 249 325 375 226 224 760 Parts 322 | 12 32 14 . 12 50 6 5 2 . 6 11 1 . 17 . 14 . 3 . 21 13 3 26 . 10 14 15 11 24 Haulers Intercepted 15 | . 2 . . . 5 1 . . . . 2 . . . . . . . . . 1 . 1 . . 1 1 1 . Recyclers Shooed 10 | . 3 2 . . 2 1 . . . . . . . . . . . . . . . . . . . . 1 . 1 Parts Field Recycled . | . . . . . . . . . . . . . . . . . . . . . . . . . . . . . . Retrieved Matter . | . . . . . . . . . . . . . . . . . . . . . . . . . . . . . . Parts Self-Destructed 108 | . . . . . . . 12 . . 6 . . . . . . . 2 . 19 . 23 24 . 22 . . . . Prevented 12 | . . . . . . . . . . . . . . . . . 2 . . 4 . . 6 . . . . . . Kills | -11 -10 -10 -10 -9 -8 -7 -7 -7 -7 -6 -6 -6 -6 -6 -6 -5 -5 -5 -5 -4 -4 -4 -4 -4 -3 -3 -2 -1 -1 ------- Run | Yrd Mat Min Exi Min Mat Fac Low Low Dat Pro Fac Ext Cet Arc Hub Fac Upp Upp War Pro Fac Upp Upp Zhi Pro Res Res Acc Com Combat Hostiles Destroyed 117 | . 12 4 . 4 18 . 5 . . 6 2 . . . . 2 . 5 1 10 2 2 15 . 6 4 6 2 11 Melee 4 | . . . . . 3 . . . . . 1 . . . . . . . . . . . . . . . . . . Guns 26 | . 12 1 . 2 4 . . . . . . . . . . . . 1 . 2 . . . . 1 2 . . 1 Cannons 34 | . . . . 2 4 . . . . . . . . . . 2 . . 1 2 . 2 6 . 5 . 2 2 6 AOE 41 | . . 3 . . 3 . 5 . . 4 . . . . . . . 4 . 5 2 . 8 . . 1 4 . 2 Classes Destroyed 24 | 2 7 . . 3 1 1 2 . . . 1 . . . . . 1 . 1 2 . . . . . 1 1 . 1 Worker 10 | . 1 1 . . 1 . . . . . 1 . . . 1 . . . . . 4 . . . . . . . 1 Builder 5 | . 1 1 . 1 1 . . . . . . . . . . . . . . . 1 . . . . . . . . Tunneler 8 | 3 . 2 . . 1 1 . . . . . . . . . . . . . . . . . . . 1 . . . Hauler 15 | . 2 . . . 5 1 . . . . 2 . . . . . . . . . 1 . 1 . . 1 1 1 . Recycler 8 | 1 . . . . 3 1 . . . . 1 . . . . . . . . . . . . . . . . . 2 Minesweeper 2 | . . . . . . . . . . . . . . . . . 1 . . . . . 1 . . . . . . Mechanic 4 | . . . . . . 1 . . . . . . . . . 1 . . 1 . 1 . . . . . . . . Operator 14 | . 1 . . . . 1 . . . . 1 1 . 8 . 1 . . . . 1 . . . . . . . . Watcher 14 | . 3 . . . 3 2 . . . . 1 . . . 1 . . . . . 1 . . . . . 1 . 2 Swarmer 35 | . 3 4 . 1 . . 2 . . 4 . . . . . . . 1 . 5 . . 9 . 1 1 4 . . Cutter 2 | . . . . . 2 . . . . . . . . . . . . . . . . . . . . . . . . Grunt 37 | . 9 1 . . 13 . . . . 2 1 . . . . . . 1 . 2 . . 2 . 3 1 . . 2 Brawler 3 | . . . . . . . 1 . . . . . . . . . . . . 1 . . . . 1 . . . . Duelist 5 | . . . . 1 1 . 1 . . . . . . . . . . 2 . . . . . . . . . . . Protector 1 | . . . . . . . . . . . . . . . . . . . . 1 . . . . . . . . . Sentry 7 | . . . . 1 2 . 1 . . . . . . . . . . 1 . . . . . . 1 1 . . . Demolisher 1 | . . . . . . . . . . . . . . . . . . . . . . . . . . . 1 . . Hunter 6 | . . . . . . . . . . . . . . . . . . . . 2 . . 2 . . . . . 2 Programmer 16 | . . . . . . . . . . . 1 . . . . 2 . . . . 2 2 2 . . . . 2 5 Behemoth 2 | . . . . . . . . . . . . . . . . . . . . . . . . . . 1 . . 1 Striker 2 | . . . . . . . . . . . . . . . . . . . 1 . . . . . . . 1 . . Alpha 7 1 | . . . . . . . . . . . . . . . . . . . . . . . . . . . . . 1 Decomposer 6 | . . . . . . . 4 . . 1 . . . . . . 1 . . . . . . . . . . . . Packrat 2 | . . . . . . . 1 1 . . . . . . . . . . . . . . . . . . . . . Samaritan 5 | . . . . . . . 2 3 . . . . . . . . . . . . . . . . . . . . . Assembled 1 | . . . . 1 . . . . . . . . . . . . . . . . . . . . . . . . . Savage 1 | . . . . . . . . . . . . . 1 . . . . . . . . . . . . . . . . Best Kill Streak 7 | 3 3 4 . 1 5 3 3 . . 4 2 1 . 5 1 2 1 4 1 5 7 1 5 . 3 2 4 2 4 Combat Bots Only 5 | . 3 3 . 1 3 . 3 . . 4 1 . . . . 2 . 4 1 5 2 1 5 . 3 1 4 2 2 Max Kills in Single Turn 4 | 1 1 2 . 1 2 1 2 1 . 3 1 1 1 1 1 1 1 2 1 4 3 1 3 . 1 1 2 1 1 Gunslinging . | . . . . . . . . . . . . . . . . . . . . . . . . . . . . . . Exploded 4 | . . 2 . . 1 . 2 . . 3 . . . . . . . 2 . 4 1 . 3 . . 1 2 . 1 Melee 1 | . . . . . 1 . . . . . 1 . . . . . . . . . . . . . . . . . . Uniques/NPCs Destroyed . | . . . . . . . . . . . . . . . . . . . . . . . . . . . . . . Combat | -11 -10 -10 -10 -9 -8 -7 -7 -7 -7 -6 -6 -6 -6 -6 -6 -5 -5 -5 -5 -4 -4 -4 -4 -4 -3 -3 -2 -1 -1 -------- Run | Yrd Mat Min Exi Min Mat Fac Low Low Dat Pro Fac Ext Cet Arc Hub Fac Upp Upp War Pro Fac Upp Upp Zhi Pro Res Res Acc Com Hostile Shots Fired 998 | . 78 10 . 15 102 . 27 36 . 28 52 2 1 . 9 24 6 20 . 9 21 18 41 . 63 23 15 36 362 Missed 318 | . 20 6 . 3 31 . 10 19 . 10 19 1 . . 3 13 1 6 . 4 8 8 15 . 13 6 3 16 103 Damage Taken 12766 | . 782 64 . 270 1166 265 86 129 . 256 770 85 112 97 20 231 73 286 37 33 471 129 301 . 1139 251 412 378 4923 Core 2036 | . 97 24 . 44 152 . . 18 . 22 109 . 26 . . 19 . . . . 40 . 38 . 106 22 87 34 1198 Absorbed by Shields 1022 | . . . . . . 20 . . . . . 28 28 . . . . 87 31 32 . 90 152 . 130 98 78 85 163 Redirected to Shielding 224 | . . . . . . . . . . . . . . . . . . . . . . . . . 105 17 . 11 91 Ignored by Resistances 195 | . . . . . . . 30 . . . 7 . . . . . . . 11 31 . . 65 . 35 9 . . 7 Regen/Repaired (Parts) 150 | . . . . . . . . . . . . . . . . 18 . . 15 . 117 . . . . . . . . Core Remaining (%) 78 | 100 . . . 34 72 . . . . 94 . . . . 84 . . . . 98 . . . . 84 98 94 . 23 Volleys Fired 610 | 19 75 15 . 12 99 4 8 4 . 7 9 11 14 41 1 16 12 12 3 22 9 9 32 . 28 34 16 17 81 Largest 2 | 2 2 2 . 2 2 2 1 1 . 1 1 2 2 2 1 2 1 2 1 2 1 2 2 . 2 2 2 2 2 Hottest 160 | 70 70 40 . 80 80 62 39 24 . 65 90 143 143 125 90 125 90 96 90 125 90 151 121 . 151 125 122 151 160 Shots Fired 883 | 32 141 26 . 20 117 5 9 6 . 8 9 20 22 79 1 22 12 18 3 26 10 17 51 . 47 36 24 23 99 Gun 347 | 32 141 22 . 12 32 1 1 6 . . . 8 . 40 . 6 . 6 . 8 3 . . . 11 12 . . 6 Cannon 469 | . . . . 8 78 . . . . 6 5 10 22 39 1 16 12 9 3 16 2 17 45 . 36 22 19 23 80 Launcher 67 | . . 4 . . 7 4 8 . . 2 4 2 . . . . . 3 . 2 5 . 6 . . 2 5 . 13 Special . | . . . . . . . . . . . . . . . . . . . . . . . . . . . . . . Kinetic 566 | 19 123 22 . 20 110 1 1 6 . . . 9 15 40 . 6 . 12 . 8 3 9 40 . 37 12 19 11 43 Thermal 222 | 13 18 . . . . . . . . 6 5 9 7 39 1 16 12 3 3 13 2 8 . . 7 19 . 12 29 Explosive 67 | . . 4 . . 7 4 8 . . 2 4 2 . . . . . 3 . 2 5 . 6 . . 2 5 . 13 Electromagnetic 28 | . . . . . . . . . . . . . . . . . . . . 3 . . 5 . 3 3 . . 14 Robot Hit Streak 20 | 3 18 4 . 3 10 2 3 2 . . . 4 6 6 . 4 1 7 9 10 5 2 12 . 17 20 6 2 8 Robot Miss Streak 6 | 2 6 3 . 2 4 1 . 3 . . 2 2 3 5 . 2 2 2 . 2 2 2 6 . 3 4 1 4 3 Penetration Max 1 | . . . . . 1 . . . . . . . . . . . . . . . . . . . . . . . . Secondary Targets 2 | . 2 . . . . . . . . . . . . . . . . . . . . . . . . . . . . Max Gunslinging Chain 1 | . 1 . . . . . . . . . . . . . . . . . . . . . . . . . . . . Shots Hit Robots 531 | 14 106 10 . 11 88 9 8 7 . 6 24 14 11 38 2 10 2 9 3 9 9 7 25 7 32 13 15 4 38 Core Hits 287 | 6 35 12 . 6 43 5 12 4 . 6 7 3 3 11 . 5 1 9 1 14 15 2 21 3 14 9 12 4 24 Critical Kills 18 | . . . . 2 8 1 . . . . . . . 3 . . . . . . . . . . . 2 1 . 1 Critical Parts Destroyed 31 | . 2 . . . 15 . 1 . . 1 2 . . 1 2 . 1 . 1 . 1 . . . 1 . . 2 1 Critical Strikes 60 | . 2 . . 2 25 1 1 . . 1 2 . 1 4 2 . 1 2 1 . 1 1 2 . 3 2 1 2 3 Meltdown 1 | . . . . . . . . . . . . . . . . . . . . . . . . . . . . . 1 Destroy 33 | . 1 . . 2 23 . . . . . . . . 4 . . . . . . . . . . 1 2 . . . Blast 9 | . . . . . . . . . . . . . 1 . . . . 2 . . . 1 2 . 2 . . . 1 Smash 17 | . 1 . . . 2 1 1 . . 1 2 . . . 2 . 1 . 1 . 1 . . . . . 1 2 1 Melee Attacks 256 | . 10 . . . 42 19 11 7 . 12 42 14 . . 5 19 1 . 6 . 6 . . 7 . 5 6 31 13 Impact 256 | . 10 . . . 42 19 11 7 . 12 42 14 . . 5 19 1 . 6 . 6 . . 7 . 5 6 31 13 Slashing . | . . . . . . . . . . . . . . . . . . . . . . . . . . . . . . Piercing . | . . . . . . . . . . . . . . . . . . . . . . . . . . . . . . Sneak Attacks 40 | . 4 . . . 5 4 7 4 . 1 5 . . . 1 1 1 . 1 . 2 . . . . 1 1 1 1 Combat Hostiles 1 | . . . . . . . . . . . 1 . . . . . . . . . . . . . . . . . . Follow-up Attacks 6 | . . . . . . . . . . . 6 . . . . . . . . . . . . . . . . . . Damage Inflicted 23531 | 165 1219 417 . 162 3104 723 1072 480 . 640 1448 592 413 1198 162 458 126 547 174 697 991 312 1696 663 1162 573 1126 345 2866 Guns 3314 | 165 1017 127 . 88 388 . . 36 . . . 158 . 488 . 59 . 136 . 178 29 . . . 205 177 . . 63 Cannons 7693 | . . . . 74 966 . . . . . . 176 413 710 . 277 36 107 71 193 34 312 1079 . 957 143 596 183 1366 Explosions 5570 | . . 281 . . 307 237 495 . . 282 137 69 . . . . . 304 . 326 664 . 617 . . 102 385 . 1364 Melee 6945 | . 202 . . . 1443 486 577 444 . 358 1311 189 . . 162 122 90 . 103 . 264 . . 663 . 151 145 162 73 Ramming 9 | . . 9 . . . . . . . . . . . . . . . . . . . . . . . . . . . Kinetic 7745 | 53 820 127 . 162 1354 . . 36 . . . 158 282 488 . 59 . 243 . 178 29 183 880 . 921 177 596 109 890 Thermal 2551 | 112 197 . . . . . . . . . . 176 131 710 . 277 36 . 71 105 34 129 . . 205 42 . 74 252 Explosive 5552 | . . 281 . . 307 237 495 . . 282 119 69 . . . . . 304 . 326 664 . 617 . . 102 385 . 1364 Electromagnetic 729 | . . . . . . . . . . . 18 . . . . . . . . 88 . . 199 . 36 101 . . 287 Impact 6945 | . 202 . . . 1443 486 577 444 . 358 1311 189 . . 162 122 90 . 103 . 264 . . 663 . 151 145 162 73 Slashing . | . . . . . . . . . . . . . . . . . . . . . . . . . . . . . . Piercing . | . . . . . . . . . . . . . . . . . . . . . . . . . . . . . . Highest Corruption 12 | . . . . 12 . 10 10 10 10 10 3 3 3 3 . 1 1 1 1 6 5 5 6 6 10 . . 4 9 Average Corruption 5 | . . . . 11 . 10 10 10 10 10 2 3 3 2 . 1 1 1 1 6 4 5 5 6 9 . . 1 5 Corruption Purged 3 | . . . . . . . . . . . . . . 3 . . . . . . . . . . . . . . . Corruption Blocked . | . . . . . . . . . . . . . . . . . . . . . . . . . . . . . . Effects 330 | . . . . 8 . 9 45 38 4 34 12 21 5 11 . 2 10 2 . . 5 15 27 7 41 . . 2 32 Message Errors 87 | . . . . 4 . 1 11 11 . 16 1 9 . 3 . . 5 1 . . . 5 3 2 8 . . 1 6 Matter Fused 69 | . . . . . . 4 7 10 1 3 3 2 3 4 . . 2 . . . 1 2 9 3 5 . . . 10 Heat Flow Errors 42 | . . . . 1 . 1 5 4 2 3 . 2 . . . 1 2 . . . 2 2 5 1 7 . . 1 3 Energy Discharges 44 | . . . . . . . 12 5 . 7 4 1 . 1 . 1 1 . . . . 2 3 . 5 . . . 2 Parts Rejected 4 | . . . . . . . . . . . 1 . . . . . . . . . . . . . . . . . 3 Parts Fused 1 | . . . . . . . . . . . . . . . . . . . . . 1 . . . . . . . . Data Loss (minor) 36 | . . . . 1 . 2 4 . 1 3 2 3 1 . . . . . . . . 3 3 . 8 . . . 5 Data Loss (major) 24 | . . . . . . 1 4 4 . 1 1 1 . 1 . . . 1 . . . . 3 1 4 . . . 2 Misfires 12 | . . . . 1 . . 1 2 . 1 . . 1 . . . . . . . 1 1 . . 3 . . . 1 Alerts 7 | . . . . . . . 1 2 . . . 3 . . . . . . . . . . 1 . . . . . . Weapon Failures 4 | . . . . 1 . . . . . . . . . 2 . . . . . . . . . . 1 . . . . Overload Shots . | . . . . . . . . . . . . . . . . . . . . . . . . . . . . . . Overflow Damage 3634 | . 60 4 . . 334 211 566 416 . 202 323 128 . 97 162 5 90 27 103 . 175 8 12 148 16 94 109 162 182 Projectiles 255 | . . . . . 13 . . . . . . 17 . 97 . 5 . 27 . . 4 8 12 . 16 . 8 . 48 Explosions 164 | . . 4 . . 15 43 13 . . . . 6 . . . . . . . . 2 . . . . . 20 . 61 Melee 3215 | . 60 . . . 306 168 553 416 . 202 323 105 . . 162 . 90 . 103 . 169 . . 148 . 94 81 162 73 Knockbacks 45 | . 3 . . . 15 2 . . . . . . . . . . . . . . 1 . 9 1 3 . 7 . 4 Impact 12 | . 3 . . . 4 2 . . . . . . . . . . . . . . 1 . . 1 . . . . 1 Kinetic 31 | . . . . . 10 . . . . . . . . . . . . . . . . . 8 . 3 . 7 . 3 Secondary 2 | . . . . . 1 . . . . . . . . . . . . . . . . . 1 . . . . . . Self-Inflicted Damage 258 | . . 24 . . 42 . . . . . . . . . . . . 48 . . . . . . . . 72 . 72 Shots 8 | . . 1 . . 2 . . . . . . . . . . . . 1 . . . . . . . . 2 . 2 Rammed . | . . . . . . . . . . . . . . . . . . . . . . . . . . . . . . Targets Rammed 3 | . . 3 . . . . . . . . . . . . . . . . . . . . . . . . . . . Kicked 3 | . . 3 . . . . . . . . . . . . . . . . . . . . . . . . . . . Crushed . | . . . . . . . . . . . . . . . . . . . . . . . . . . . . . . Highest Temperature 282 | 100 210 6 . 195 9 103 220 250 147 174 . 250 . 168 40 249 208 102 . 167 79 282 230 119 82 . . 42 179 Average Temperature 69 | 46 65 6 . 103 4 57 95 98 79 68 . 117 . 69 25 62 61 47 . 77 47 52 107 63 41 . . 42 53 Received Heat Transfer 1897 | . 453 27 . 63 585 . . 36 . 72 54 16 . . . 9 . 39 . . . 8 12 . 295 30 . . 198 Siege Activations . | . . . . . . . . . . . . . . . . . . . . . . . . . . . . . . Robots Corrupted 31 | . 3 . . . 7 3 2 2 . 2 3 . . . . . 1 . . 1 2 . 1 . . 1 1 . 2 Combat Hostiles 11 | . . . . . 4 . . . . 2 1 . . . . . . . . 1 . . 1 . . 1 . . 1 Parts Fried 54 | . 8 . . . 9 8 2 4 . 1 3 . . . 4 . 1 . 2 2 1 . 4 . . 2 1 . 2 Impact Corruptions 111 | . 5 . . . 11 6 23 18 . 6 11 1 . . 5 . 3 . 3 . 8 . . 3 . 1 2 2 3 Robots Melted 1 | . . . . . . . . . . . . . . . . . . . . . . . . . . . . . 1 Combat Hostiles 1 | . . . . . . . . . . . . . . . . . . . . . . . . . . . . . 1 Parts Melted 8 | . 1 . . . . . . . . . . . . 4 . 1 . . . . . 1 . . . . . . 1 Heat Transferred 3556 | 333 555 . . . . . . . . . . 222 200 1100 . 259 37 . 74 92 37 111 . . 222 37 . 74 203 Parts Sabotaged . | . . . . . . . . . . . . . . . . . . . . . . . . . . . . . . Parts Stolen . | . . . . . . . . . . . . . . . . . . . . . . . . . . . . . . Parts Stripped . | . . . . . . . . . . . . . . . . . . . . . . . . . . . . . . Power Chain Reactions . | . . . . . . . . . . . . . . . . . . . . . . . . . . . . . . Alert | -11 -10 -10 -10 -9 -8 -7 -7 -7 -7 -6 -6 -6 -6 -6 -6 -5 -5 -5 -5 -4 -4 -4 -4 -4 -3 -3 -2 -1 -1 ------- Run | Yrd Mat Min Exi Min Mat Fac Low Low Dat Pro Fac Ext Cet Arc Hub Fac Upp Upp War Pro Fac Upp Upp Zhi Pro Res Res Acc Com Peak Influence 534 | 20 259 155 . 124 534 254 . . . . 342 346 180 385 235 184 . . . . 200 . . . . 140 496 270 339 Initial 189 | . 13 15 . . 36 130 . . . . 65 107 64 72 68 88 . . . . 98 . . . . 40 8 189 . Average 140 | 8 75 30 . 21 300 164 . . . . 225 216 98 254 97 72 . . . . 107 . . . . 69 317 119 176 Maximum Alert Level 2 | . 1 . . . 2 1 . . . . 1 1 . 1 1 . . . . . 1 . . . . . 2 1 1 Low Security (%) 72 | 100 93 100 . 100 21 80 . . . . 39 45 100 43 95 100 . . . . 99 . . . . 100 11 87 64 Level 1 23 | . 6 . . . 55 19 . . . . 60 54 . 56 4 . . . . . . . . . . . 52 12 35 Level 2 3 | . . . . . 23 . . . . . . . . . . . . . . . . . . . . . 36 . . Level 3 . | . . . . . . . . . . . . . . . . . . . . . . . . . . . . . . Level 4 . | . . . . . . . . . . . . . . . . . . . . . . . . . . . . . . Level 5 . | . . . . . . . . . . . . . . . . . . . . . . . . . . . . . . High Security . | . . . . . . . . . . . . . . . . . . . . . . . . . . . . . . Max Security . | . . . . . . . . . . . . . . . . . . . . . . . . . . . . . . Squads Dispatched 38 | . 2 . . . 3 1 . . . . 6 1 . . 6 3 . . . . 2 . . . . 5 1 3 5 Investigation 16 | . 1 . . . 1 . . . . . 2 1 . . 4 1 . . . . . . . . . 4 . 1 1 Extermination 6 | . . . . . . . . . . . 1 . . . . 1 . . . . . . . . . . . 2 2 Reinforcement 15 | . 1 . . . 1 1 . . . . 3 . . . 2 1 . . . . 2 . . . . 1 1 . 2 Assault . | . . . . . . . . . . . . . . . . . . . . . . . . . . . . . . Garrison 1 | . . . . . 1 . . . . . . . . . . . . . . . . . . . . . . . . Intercept . | . . . . . . . . . . . . . . . . . . . . . . . . . . . . . . Searches Triggered . | . . . . . . . . . . . . . . . . . . . . . . . . . . . . . . Data Miner Redirects 2 | . . . . . . . . . . . . . . . . . . . . . . . . . . . . 1 1 Construction Impeded . | . . . . . . . . . . . . . . . . . . . . . . . . . . . . . . Haulers Reinforced . | . . . . . . . . . . . . . . . . . . . . . . . . . . . . . . Active Scanning Responses . | . . . . . . . . . . . . . . . . . . . . . . . . . . . . . . Cargo Convoy Interrupts . | . . . . . . . . . . . . . . . . . . . . . . . . . . . . . . Stealth | -11 -10 -10 -10 -9 -8 -7 -7 -7 -7 -6 -6 -6 -6 -6 -6 -5 -5 -5 -5 -4 -4 -4 -4 -4 -3 -3 -2 -1 -1 --------- Run | Yrd Mat Min Exi Min Mat Fac Low Low Dat Pro Fac Ext Cet Arc Hub Fac Upp Upp War Pro Fac Upp Upp Zhi Pro Res Res Acc Com Distress Signals 29 | . . 1 . 1 3 . . . . . 2 . 2 . 2 . . . . . . . . . . 10 3 1 4 Communications Jammed 38 | . . . . . . . . . . . . 1 . . . 2 . . . . 8 . 21 . . . . . 6 Distress Signals 16 | . . . . . . . . . . . . 1 . . . 2 . . . . 7 . . . . . . . 6 Times Spotted 305 | . 20 4 . 9 28 10 7 2 . 9 12 19 10 20 2 7 1 5 24 10 9 6 18 . 10 8 5 7 43 Peak Tracking Total 13 | . 3 3 . 3 8 4 4 1 . 4 3 3 5 1 4 2 1 5 13 5 4 2 5 . 5 2 4 2 10 Tactical Retreats 31 | . . . . . 3 3 . 2 . 2 1 . . . . . . . 2 3 2 . 1 . 2 1 . . 9 Traps | -11 -10 -10 -10 -9 -8 -7 -7 -7 -7 -6 -6 -6 -6 -6 -6 -5 -5 -5 -5 -4 -4 -4 -4 -4 -3 -3 -2 -1 -1 ------- Run | Yrd Mat Min Exi Min Mat Fac Low Low Dat Pro Fac Ext Cet Arc Hub Fac Upp Upp War Pro Fac Upp Upp Zhi Pro Res Res Acc Com Traps Triggered 9 | . 1 . . . . 3 . . . . . 1 . . . . . . . . . . . . . 1 . 2 1 Indirectly . | . . . . . . . . . . . . . . . . . . . . . . . . . . . . . . Trap Hack Attempts . | . . . . . . . . . . . . . . . . . . . . . . . . . . . . . . Triggered . | . . . . . . . . . . . . . . . . . . . . . . . . . . . . . . Disarmed 6 | . . . . . . . . . . . . . . . . . . . . . . . . . . . . . 6 Reprogrammed 12 | . . . . . 4 . . . . . . 5 . . 3 . . . . . . . . . . . . . . Reused 8 | . . . . . 1 . . . . 1 . 1 . . 1 1 1 . . 1 . . . . . . . . 1 Traps Extracted 6 | . . . . . . . 1 5 . . . . . . . . . . . . . . . . . . . . . Installed 7 | . . . . . . . . . . 1 . . . . . 1 1 . . 1 . . . . . . . . 3 Triggered 20 | . . . . . 1 . . . . 1 . 1 . . 1 1 1 . 12 1 . . . . . . . . 1 Most Traps Carried 6 | . . . . . . . 1 6 6 6 5 5 5 5 5 5 6 6 6 6 5 5 6 6 6 6 6 6 6 Machines | -11 -10 -10 -10 -9 -8 -7 -7 -7 -7 -6 -6 -6 -6 -6 -6 -5 -5 -5 -5 -4 -4 -4 -4 -4 -3 -3 -2 -1 -1 ---------- Run | Yrd Mat Min Exi Min Mat Fac Low Low Dat Pro Fac Ext Cet Arc Hub Fac Upp Upp War Pro Fac Upp Upp Zhi Pro Res Res Acc Com Machines Disabled 34 | . . . . 2 7 . . . . 1 4 1 1 6 1 1 . . . . . 1 . 1 . . 4 2 2 Max in Single Turn 2 | . . . . 1 1 . . . . 1 1 . . 1 1 . . . . . . 1 . 1 . . 1 1 2 Garrison Access 1 | . . . . . 1 . . . . . . . . . . . . . . . . . . . . . . . . Phase Generator 1 | . . . . . . . . . . . . . . . . . . . . . . . . . . . . . 1 Network Hub 1 | . . . . . . . . . . . . . . . 1 . . . . . . . . . . . . . . Energy Cycler 1 | . . . . . . . . . . . . . . . . . . . . . . . . . . . . 1 . Machines Repaired . | . . . . . . . . . . . . . . . . . . . . . . . . . . . . . . Machines Dismantled . | . . . . . . . . . . . . . . . . . . . . . . . . . . . . . . Machines Sabotaged 1 | . . . . . . . . . . . . . . . 1 . . . . . . . . . . . . . . Overloaded Fab Kills . | . . . . . . . . . . . . . . . . . . . . . . . . . . . . . . Hacking | -11 -10 -10 -10 -9 -8 -7 -7 -7 -7 -6 -6 -6 -6 -6 -6 -5 -5 -5 -5 -4 -4 -4 -4 -4 -3 -3 -2 -1 -1 --------- Run | Yrd Mat Min Exi Min Mat Fac Low Low Dat Pro Fac Ext Cet Arc Hub Fac Upp Upp War Pro Fac Upp Upp Zhi Pro Res Res Acc Com Machines Accessed 95 | . 7 . 2 1 10 9 . 1 4 1 8 8 1 . 4 10 2 1 4 . 4 . 1 4 . 4 1 3 5 Terminals 49 | . 6 . . . 5 5 . . . 1 3 7 1 . 4 4 1 1 . . 1 . . . . 2 1 2 5 Fabricators 11 | . . . . . . 3 . . . . 4 . . . . 2 . . . . 1 . . . . . . 1 . Repair Stations 5 | . 1 . . . 1 . . . . . . . . . . 2 . . . . 1 . . . . . . . . Recycling Units 8 | . . . . . 2 . . . . . 1 1 . . . 1 . . . . 1 . . . . 2 . . . Scanalyzers 2 | . . . . . 1 . . . . . . . . . . 1 . . . . . . . . . . . . . Garrison Access 2 | . . . . . 1 1 . . . . . . . . . . . . . . . . . . . . . . . Total Hacks 314 | . 24 . 2 1 22 20 . 1 28 3 17 17 4 . 18 40 9 1 9 . 9 . 1 17 . 8 14 17 32 Successful 203 | . 11 . 2 1 12 11 . 1 28 3 9 7 1 . 11 25 9 1 9 . 6 . 1 17 . 4 4 13 17 Failed 110 | . 12 . . . 10 9 . . . . 8 10 3 . 7 15 . . . . 3 . . . . 4 10 4 15 Catastrophic 15 | . . . . . . 3 . . . . . 3 1 . . 3 . . . . . . . . . . 4 . 1 Database Lockouts 1 | . 1 . . . . . . . . . . . . . . . . . . . . . . . . . . . . Manual 91 | . 7 . 1 . 3 6 . . . . 2 5 1 . 15 16 . . 1 . 2 . . . . 1 12 2 17 Terminals 179 | . 22 . . . 14 13 . . . 3 5 16 4 . 18 15 2 1 . . 2 . . . . 5 14 13 32 Fabricators 29 | . . . . . . 5 . . . . 10 . . . . 8 . . . . 2 . . . . . . 4 . Repair Stations 9 | . 2 . . . 2 . . . . . . . . . . 3 . . . . 2 . . . . . . . . Recycling Units 23 | . . . . . 4 . . . . . 2 1 . . . 10 . . . . 3 . . . . 3 . . . Scanalyzers 5 | . . . . . 1 . . . . . . . . . . 4 . . . . . . . . . . . . . Garrison Access 3 | . . . . . 1 2 . . . . . . . . . . . . . . . . . . . . . . . Terminal Hacks 148 | . 11 . 2 1 7 6 . 1 28 3 2 5 1 . 6 7 9 1 9 . 2 . 1 17 . 2 4 10 13 Record 42 | . . . 1 . . 1 . . 11 3 . . . . . . 9 1 8 . . . . 5 . . . . 3 Part Schematic 18 | . . . . . . 1 . . 10 . . . . . . 1 . . . . 1 . . 4 . . 1 . . Robot Schematic 4 | . . . . . . . . . 4 . . . . . . . . . . . . . . . . . . . . Robot Analysis 13 | . 4 . . . 2 1 . . . . . 1 . . . 1 . . . . . . . 4 . . . . . Prototype ID Bank 11 | . 2 . . . . . . . 3 . . . . . . 1 . . . . . . . 4 . . . . 1 Open Door 6 | . . . . 1 . . . 1 . . 1 . 1 . . . . . 1 . . . 1 . . . . . . Open DSF 1 | . . . . . . . . . . . . . . . . . . . . . . . . . . 1 . . . Level Access Points 4 | . . . . . . . . . . . . . . . 1 1 . . . . . . . . . . 1 1 . Branch Access Points 6 | . 1 . . . 1 1 . . . . 1 . . . . . . . . . 1 . . . . . . 1 . Emergency Access Points 1 | . . . . . . . . . . . . . . . 1 . . . . . . . . . . . . . . Machine Index 2 | . . . . . . . . . . . . . . . . . . . . . . . . . . 1 . . 1 Terminal Index 3 | . . . . . . . . . . . . . . . 1 1 . . . . . . . . . . . . 1 Garrison Index 1 | . . . . . . . . . . . . . . . . . . . . . . . . . . . . 1 . Alert Level 2 | . . . . . . . . . . . . 1 . . . . . . . . . . . . . . . . 1 Unreport Threat 7 | . 2 . . . 1 . . . . . . 1 . . 1 . . . . . . . . . . . . 1 1 Locate Traps 4 | . . . . . 1 2 . . . . . . . . . . . . . . . . . . . . . 1 . Disarm Traps 1 | . . . . . . . . . . . . . . . . . . . . . . . . . . . . . 1 Reprogram Traps 4 | . . . . . 1 . . . . . . 2 . . 1 . . . . . . . . . . . . . . Dispatch Records 2 | . . . . . . . . . . . . . . . 1 . . . . . . . . . . . . . 1 Maintenance Status 2 | . . . . . . . . . . . . . . . . . . . . . . . . . . . 1 . 1 Security Status 1 | . . . . . . . . . . . . . . . . . . . . . . . . . . . . 1 . Surveillance Status 1 | . . . . . . . . . . . . . . . . . . . . . . . . . . . . 1 . Patrol Status 1 | . . . . . . . . . . . . . . . . . . . . . . . . . . . . 1 . Transport Status 1 | . . . . . . . . . . . . . . . . 1 . . . . . . . . . . . . . Hauler Manifests 2 | . . . . . . . . . . . . . . . . 1 . . . . . . . . . . . 1 . Zone Layout 5 | . 2 . . . 1 . . . . . . . . . . . . . . . . . . . . . 1 1 . Derelict Proto ID Bank 1 | . . . 1 . . . . . . . . . . . . . . . . . . . . . . . . . . Disengage Seal 2 | . . . . . . . . . . . . . . . . . . . . . . . . . . . . . 2 Fabricator Hacks 16 | . . . . . . 4 . . . . 5 . . . . 4 . . . . 1 . . . . . . 2 . Network Status 4 | . . . . . . 1 . . . . 1 . . . . 1 . . . . 1 . . . . . . . . Load Schematic 4 | . . . . . . . . . . . 2 . . . . 1 . . . . . . . . . . . 1 . Build 8 | . . . . . . 3 . . . . 2 . . . . 2 . . . . . . . . . . . 1 . Repair Station Hacks 7 | . . . . . 2 . . . . . . . . . . 3 . . . . 2 . . . . . . . . Scan Component 3 | . . . . . . . . . . . . . . . . 2 . . . . 1 . . . . . . . . Repair 2 | . . . . . . . . . . . . . . . . 1 . . . . 1 . . . . . . . . Refit 2 | . . . . . 2 . . . . . . . . . . . . . . . . . . . . . . . . Recycling Unit Hacks 6 | . . . . . 1 . . . . . . 1 . . . 1 . . . . 1 . . . . 2 . . . Retrieve Components 6 | . . . . . 1 . . . . . . 1 . . . 1 . . . . 1 . . . . 2 . . . Scanalyzer 4 | . . . . . 1 . . . . . . . . . . 3 . . . . . . . . . . . . . Insert Component 2 | . . . . . 1 . . . . . . . . . . 1 . . . . . . . . . . . . . Analyze 2 | . . . . . . . . . . . . . . . . 2 . . . . . . . . . . . . . Garrison Access Hacks 1 | . . . . . 1 . . . . . . . . . . . . . . . . . . . . . . . . Seal Access 1 | . . . . . 1 . . . . . . . . . . . . . . . . . . . . . . . . Unauthorized Hacks 21 | . . . . . . 1 . . . . 2 1 . . 5 7 . . . . . . . . . . . 1 4 Terminals 13 | . . . . . . 1 . . . . . 1 . . 5 2 . . . . . . . . . . . . 4 Track 1 | . . . . . . . . . . . . . . . . . . . . . . . . . . . . . 1 Assimilate 4 | . . . . . . 1 . . . . . 1 . . 1 . . . . . . . . . . . . . 1 Botnet 2 | . . . . . . . . . . . . . . . . 1 . . . . . . . . . . . . 1 Operators 2 | . . . . . . . . . . . . . . . . 1 . . . . . . . . . . . . 1 Sabotage 4 | . . . . . . . . . . . . . . . 4 . . . . . . . . . . . . . . Fabricators 4 | . . . . . . . . . . . 2 . . . . 1 . . . . . . . . . . . 1 . Prioritize 4 | . . . . . . . . . . . 2 . . . . 1 . . . . . . . . . . . 1 . Repair Stations . | . . . . . . . . . . . . . . . . . . . . . . . . . . . . . . Recycling Units 4 | . . . . . . . . . . . . . . . . 4 . . . . . . . . . . . . . Monitor 1 | . . . . . . . . . . . . . . . . 1 . . . . . . . . . . . . . Reject 1 | . . . . . . . . . . . . . . . . 1 . . . . . . . . . . . . . Recyclers 1 | . . . . . . . . . . . . . . . . 1 . . . . . . . . . . . . . Mask 1 | . . . . . . . . . . . . . . . . 1 . . . . . . . . . . . . . Scanalyzers . | . . . . . . . . . . . . . . . . . . . . . . . . . . . . . . Garrison Access . | . . . . . . . . . . . . . . . . . . . . . . . . . . . . . . Data Cores Recovered 2 | . . . . . . . . . . . . 1 . . . . . . . . . . . . . . . . 1 Used . | . . . . . . . . . . . . . . . . . . . . . . . . . . . . . . Hacking Detections 51 | . 4 . . . 6 8 . . . 1 7 7 . . 3 6 . . . . 1 . . . . 1 1 3 3 Full Trace Events 6 | . . . . . . . . . . . 2 1 . . . 1 . . . . . . . . . . . 1 1 Feedback Events . | . . . . . . . . . . . . . . . . . . . . . . . . . . . . . . Feedback Blocked . | . . . . . . . . . . . . . . . . . . . . . . . . . . . . . . Robot Schematics Acquired 4 | . . . . . . . . . 4 . . . . . . . . . . . . . . . . . . . . Robots Built 2 | . . . . . . 2 . . . . . . . . . . . . . . . . . . . . . . . Authchips . | . . . . . . . . . . . . . . . . . . . . . . . . . . . . . . Time 40 | . . . . . . 40 . . . . . . . . . . . . . . . . . . . . . . . Total Robot Build Rating 2 | . . . . . . 2 . . . . . . . . . . . . . . . . . . . . . . . Part Schematics Acquired 19 | . . . . . . 1 . . 10 . . . . . . 2 . . . . 1 . . 4 . . 1 . . Parts Built 9 | . . . . . . 4 . . . . 2 . . . . 2 . . . . . . . . . . . 1 . Authchips . | . . . . . . . . . . . . . . . . . . . . . . . . . . . . . . Time 614 | . . . . . . 126 . . . . 160 . . . . 297 . . . . . . . . . . . 31 . Total Part Build Rating 48 | . . . . . . 16 . . . . 11 . . . . 14 . . . . . . . . . . . 7 . Parts Repaired 2 | . . . . . . . . . . . . . . . . 1 . . . . 1 . . . . . . . . Time 69 | . . . . . . . . . . . . . . . . 25 . . . . 44 . . . . . . . . Parts Recycled . | . . . . . . . . . . . . . . . . . . . . . . . . . . . . . . Recycled Matter . | . . . . . . . . . . . . . . . . . . . . . . . . . . . . . . Retrieved Matter . | . . . . . . . . . . . . . . . . . . . . . . . . . . . . . . Retrieved Components 33 | . . . . . 10 . . . . . . 1 . . . . . . . . 2 . . . . 20 . . . Parts Scanalyzed 1 | . . . . . . . . . . . . . . . . 1 . . . . . . . . . . . . . Part Schematics Acquired 1 | . . . . . . . . . . . . . . . . 1 . . . . . . . . . . . . . Parts Damaged . | . . . . . . . . . . . . . . . . . . . . . . . . . . . . . . Bothacking | -11 -10 -10 -10 -9 -8 -7 -7 -7 -7 -6 -6 -6 -6 -6 -6 -5 -5 -5 -5 -4 -4 -4 -4 -4 -3 -3 -2 -1 -1 ------------ Run | Yrd Mat Min Exi Min Mat Fac Low Low Dat Pro Fac Ext Cet Arc Hub Fac Upp Upp War Pro Fac Upp Upp Zhi Pro Res Res Acc Com Used RIF Installer . | . . . . . . . . . . . . . . . . . . . . . . . . . . . . . . Robots Hacked . | . . . . . . . . . . . . . . . . . . . . . . . . . . . . . . Non-combat . | . . . . . . . . . . . . . . . . . . . . . . . . . . . . . . Combat . | . . . . . . . . . . . . . . . . . . . . . . . . . . . . . . Robot Hacks Applied . | . . . . . . . . . . . . . . . . . . . . . . . . . . . . . . Relay Couplers Released . | . . . . . . . . . . . . . . . . . . . . . . . . . . . . . . Fabnet Peak Effective % . | . . . . . . . . . . . . . . . . . . . . . . . . . . . . . . Robots Rewired 15 | . . . . . . . . . . . 1 9 . . . . . . 5 . . . . . . . . . . Allies Hacked . | . . . . . . . . . . . . . . . . . . . . . . . . . . . . . . Hacks Repelled . | . . . . . . . . . . . . . . . . . . . . . . . . . . . . . . Allies | -11 -10 -10 -10 -9 -8 -7 -7 -7 -7 -6 -6 -6 -6 -6 -6 -5 -5 -5 -5 -4 -4 -4 -4 -4 -3 -3 -2 -1 -1 -------- Run | Yrd Mat Min Exi Min Mat Fac Low Low Dat Pro Fac Ext Cet Arc Hub Fac Upp Upp War Pro Fac Upp Upp Zhi Pro Res Res Acc Com Total Allies 43 | . . 5 . . . 2 . . . . 1 23 5 . . . 2 . 5 . . . . . . . . . . Largest Group 17 | . . 4 4 2 2 2 . . . . 1 17 17 7 4 . 2 . 5 2 . . . . . . . . . Highest-Rated Group 595 | . . 75 75 32 32 16 . . . . 34 583 595 595 384 . 56 . 285 122 . . . . . . . . . Highest-Rated Ally 159 | . . 31 31 16 16 8 . . . . 34 159 159 159 96 . 31 . 65 65 . . . . . . . . . Total Orders 86 | . . . . . . . . . . . 4 17 4 7 . 5 . 6 2 11 3 6 13 . 8 . . . . STAY 3 | . . . . . . . . . . . . . . 2 . . . . 1 . . . . . . . . . . FOLLOW 2 | . . . . . . . . . . . . . . 1 . . . . 1 . . . . . . . . . . EXPLORE 16 | . . . . . . . . . . . 1 . . 2 . . . 2 . 4 . 1 3 . 3 . . . . RETURN 65 | . . . . . . . . . . . 3 17 4 2 . 5 . 4 . 7 3 5 10 . 5 . . . . Ally Attacks 643 | . . 17 . 26 20 . . . . . 26 189 119 38 22 25 . 2 4 26 13 51 31 . 34 . . . . Total Damage 13845 | . . 153 . 332 245 . . . . . 841 4149 2793 1024 786 398 . . 209 479 171 923 671 . 671 . . . . Kills 78 | . . 4 . 5 2 . . . . . 10 21 8 5 3 2 . . . 1 1 8 4 . 4 . . . . Allies Corrupted 1 | . . . . . . . . . . . . . . . 1 . . . . . . . . . . . . . . Allies Melted 1 | . . . . . . . . . . . . . . . . . . . 1 . . . . . . . . . . Intel | -11 -10 -10 -10 -9 -8 -7 -7 -7 -7 -6 -6 -6 -6 -6 -6 -5 -5 -5 -5 -4 -4 -4 -4 -4 -3 -3 -2 -1 -1 ------- Run | Yrd Mat Min Exi Min Mat Fac Low Low Dat Pro Fac Ext Cet Arc Hub Fac Upp Upp War Pro Fac Upp Upp Zhi Pro Res Res Acc Com Robot Analysis Total 13 | . 4 . . . 2 1 . . . . . 1 . . . 1 . . . . . . . 4 . . . . . Derelict Logs Recovered 14 | . . 1 . 1 . . 1 2 . 2 . . . . . . 2 1 . 1 . 1 2 . . . . . . Drone Launches 82 | . . . . . . . . . . . 3 21 4 3 . 7 . 7 . 9 5 8 10 . 5 . . . . Drone Recoveries 78 | . . . . . . . . . . . 3 21 4 3 . 6 . 6 . 9 5 8 9 . 4 . . . . Exploration | -11 -10 -10 -10 -9 -8 -7 -7 -7 -7 -6 -6 -6 -6 -6 -6 -5 -5 -5 -5 -4 -4 -4 -4 -4 -3 -3 -2 -1 -1 ------------- Run | Yrd Mat Min Exi Min Mat Fac Low Low Dat Pro Fac Ext Cet Arc Hub Fac Upp Upp War Pro Fac Upp Upp Zhi Pro Res Res Acc Com Turns Passed 26210 | 122 1283 1582 527 1516 1323 547 1309 1208 88 1072 1080 1204 346 654 136 1172 1311 730 907 622 451 682 1143 274 1197 988 796 846 1094 Spaces Moved 13564 | 52 555 772 276 589 770 412 802 792 81 741 559 682 177 221 88 575 845 337 559 328 189 243 514 160 380 500 446 395 524 Core 4 | 4 . . . . . . . . . . . . . . . . . . . . . . . . . . . . . Treads . | . . . . . . . . . . . . . . . . . . . . . . . . . . . . . . Legs 2470 | 48 555 772 276 589 230 . . . . . . . . . . . . . . . . . . . . . . . . Wheels 11090 | . . . . . 540 412 802 792 81 741 559 682 177 221 88 575 845 337 559 328 189 243 514 160 380 500 446 395 524 Hover . | . . . . . . . . . . . . . . . . . . . . . . . . . . . . . . Flight . | . . . . . . . . . . . . . . . . . . . . . . . . . . . . . . Fastest Speed 50 | 50 120 190 190 120 105 105 105 105 105 105 120 120 130 130 130 130 145 145 145 145 145 145 145 145 160 141 160 145 107 Average Speed 140 | 115 171 190 190 171 111 105 106 106 106 111 124 124 142 136 130 141 145 145 145 145 145 159 159 145 160 158 160 159 129 Slowest Speed 190 | 190 190 190 190 190 190 135 120 120 120 135 135 135 145 145 130 145 145 145 145 145 150 160 160 160 160 160 160 160 160 Overloaded Moves . | . . . . . . . . . . . . . . . . . . . . . . . . . . . . . . Propulsion Burnouts . | . . . . . . . . . . . . . . . . . . . . . . . . . . . . . . Robots Hopped . | . . . . . . . . . . . . . . . . . . . . . . . . . . . . . . Cave-ins Triggered 2 | . . . . . . 1 . . . . 1 . . . . . . . . . . . . . . . . . . Exploration Rate (%) 59 | 4 87 98 70 94 63 20 96 88 69 76 21 84 79 86 14 12 87 94 78 72 10 58 98 60 85 21 21 17 34 Regions Visited 29 Branch Regions 20 Pre-discovered Areas 10 | . . 1 1 . . . . . 1 1 . . . . . . 1 . . 1 . . 1 3 . . . . . Known Exits Taken 12 | . 1 . . . 1 1 . . . . 1 . . . 1 . 1 . . 1 1 . . . 1 1 1 1 . Unknown Exits Taken 17 | 1 . 1 1 1 . . 1 1 1 1 . 1 1 1 . 1 . 1 1 . . 1 1 1 . . . . . Scrap Searched 25 | . . 2 . 1 . . 2 3 . 3 . . . . . . 5 5 . 1 . . 2 . 1 . . . . Spaces Dug 318 | . 3 8 . . 29 11 4 3 . 6 35 6 . . 3 20 5 23 . 19 3 . 45 . . 35 4 27 29 Terrain Destroyed 1157 | . 3 29 . 3 107 46 67 3 . 33 52 43 5 30 3 30 11 59 . 44 17 8 109 . 16 44 86 64 245 Melee 118 | . 3 . . . 8 11 4 3 . 4 15 6 . . 2 18 . . . . 3 . . . . 3 2 26 10 Projectile 243 | . . . . 3 35 . . . . 2 1 2 5 30 1 12 11 13 . 12 2 8 19 . 16 18 6 16 31 AOE 796 | . . 29 . . 64 35 63 . . 27 36 35 . . . . . 46 . 32 12 . 90 . . 23 78 22 204 Terrain Rammed . | . . . . . . . . . . . . . . . . . . . . . . . . . . . . . . Walls Destroyed . | . . . . . . . . . . . . . . . . . . . . . . . . . . . . . . Machines Disabled . | . . . . . . . . . . . . . . . . . . . . . . . . . . . . . . Actions | -11 -10 -10 -10 -9 -8 -7 -7 -7 -7 -6 -6 -6 -6 -6 -6 -5 -5 -5 -5 -4 -4 -4 -4 -4 -3 -3 -2 -1 -1 --------- Run | Yrd Mat Min Exi Min Mat Fac Low Low Dat Pro Fac Ext Cet Arc Hub Fac Upp Upp War Pro Fac Upp Upp Zhi Pro Res Res Acc Com Total 19377 | 82 746 864 280 1080 1056 488 1224 1138 82 948 889 1009 253 492 98 867 915 559 639 444 343 520 783 188 920 646 492 522 810 Wait 4053 | . 47 57 3 440 60 6 379 310 . 160 228 177 45 209 5 231 25 202 26 80 118 266 213 . 501 54 1 63 147 Move 13534 | 51 554 771 275 588 769 411 801 791 80 740 558 681 176 220 87 574 844 336 558 327 188 242 513 159 379 499 445 394 523 Hop . | . . . . . . . . . . . . . . . . . . . . . . . . . . . . . . Pick Up 144 | 5 20 4 1 17 26 7 1 5 . . 6 1 4 . . 4 3 2 3 1 5 . 3 4 . 8 4 3 7 Fast Attach 131 | 7 2 2 . 2 12 13 . 3 1 3 9 9 4 9 . 5 8 . 5 . 1 . 4 6 . 13 4 2 7 Attach 59 | . 1 . . 3 9 2 1 . . . 5 1 . . . 1 1 2 1 . 5 . . 2 3 2 2 3 15 Detach 21 | . 1 1 . . 4 1 . . . 1 2 4 . 2 . 1 . . 1 . . . . . . 2 1 . . Swap 245 | . 19 3 . 6 12 11 20 9 . 21 15 14 1 2 . 11 9 4 5 11 7 3 11 1 9 14 6 7 14 Drop 208 | . 17 8 1 12 23 14 3 9 1 4 12 17 9 9 . 4 11 1 7 2 4 . 7 9 . 15 7 2 . Fire 610 | 19 75 15 . 12 99 4 8 4 . 7 9 11 14 41 1 16 12 12 3 22 9 9 32 . 28 34 16 17 81 Melee 243 | . 10 . . . 42 19 11 7 . 11 34 10 . . 5 19 1 . 6 . 6 . . 7 . 5 6 31 13 Ram . | . . . . . . . . . . . . . . . . . . . . . . . . . . . . . . Kick 3 | . . 3 . . . . . . . . . . . . . . . . . . . . . . . . . . . Crush . | . . . . . . . . . . . . . . . . . . . . . . . . . . . . . . Escape Stasis 8 | . . . . . . . . . . . . 8 . . . . . . . . . . . . . . . . . Rewire 111 | . . . . . . . . . . . 11 76 . . . . . . 24 . . . . . . . . . . Trap 7 | . . . . . . . . . . 1 . . . . . 1 1 . . 1 . . . . . . . . 3 Miscellaneous . | . . . . . . . . . . . . . . . . . . . . . . . . . . . . . . Route ------- -11/Scrapyard -10/Materials (discovered 4 exits: [*Mat x3] / *Min) -10/Mines (discovered 4 exits: [*Mat x2] / *Exi / [*Sub]) -10/Exiles -9/Mines (discovered 2 exits: *Mat x2) -8/Materials (discovered 3 exits: *Fac x3) -7/Factory (discovered 3 exits: *Sto / *Low x2) -7/Lower Caves -7/Lower Caves (discovered 2 exits: *Fac / *Dat) -7/Data Miner -6/Proximity Caves -6/Factory (discovered 6 exits: Fac x2 / *Low x2 / *Ext x2) -6/Extension (discovered 2 exits: *Fac / *Cet) -6/Cetus (discovered 2 exits: *Fac / *Arc) -6/Archives (discovered 3 exits: *Fac / *Hub x2) -6/Hub_04(d) (discovered 4 exits: *Fac x4) -5/Factory (discovered 5 exits: Fac x4 / *Upp) -5/Upper Caves -5/Upper Caves (discovered 2 exits: *Fac / *War) -5/Warlord -4/Proximity Caves -4/Factory (discovered 6 exits: Res x3 / *Upp x2 / Arm) -4/Upper Caves -4/Upper Caves (discovered 2 exits: *Res / *Zhi) -4/Zhirov -3/Proximity Caves -3/Research (discovered 2 exits: *Res / [*Tes]) -2/Research (discovered 3 exits: *Acc x3) -1/Access (discovered 2 exits: Sur / *Com) -1/Command To Epsilon Eridani History --------- Turn | Location | Event 11 | -11/Scrapyard | Discovered new exit (range 16) 123 | -11/Scrapyard | Entered Materials 207 | -10/Materials | Identified exit to Mines 300 | -10/Materials | Build established: Mutant 656 | -10/Materials | Discovered new exit (range 14) 750 | -10/Materials | Discovered new exit (range 8) 754 | -10/Materials | Central database locked down 924 | -10/Materials | Discovered new exit (range 11) 1406 | -10/Materials | Entered Mines 1407 | -10/Mines | Learned location of Storage (-7) 1414 | -10/Mines | Learned Materials stockpile data 1723 | -10/Mines | Assisted by bots powering up and referring to "LRC-V3" 1864 | -10/Mines | Found a damaged Exp. Sensor Array with a note attached 1868 | -10/Mines | Found Prototype Device 1868 | -10/Mines | Identified Exp. Sensor Array 2342 | -10/Mines | Discovered new exit (range 9) 2353 | -10/Mines | Build established: Scavenger-Mutant 2537 | -10/Mines | Discovered new exit (range 5) 2572 | -10/Mines | A weapon hastily lodged in a ceiling crevice suddenly fell to the ground 2651 | -10/Mines | Discovered new exit (range 15) 2957 | -10/Mines | Deemed a non-threat by the Exiles lab entrance 2959 | -10/Mines | Discovered new exit (range 5) 2988 | -10/Mines | Entered Exiles 2988 | -10/Exiles | Accompanied by 4 allies 3018 | -10/Exiles | Led the pair of lost Derelicts to a safe place 3034 | -10/Exiles | Met 8R-AWN 3066 | -10/Exiles | Met EX-HEX 3158 | -10/Exiles | Met EX-DEC 3192 | -10/Exiles | Learned location of Zion (-6) 3237 | -10/Exiles | Met EX-BIN 3260 | -10/Exiles | Aligned with FarCom system 3262 | -10/Exiles | Given EX-Vault access code 3311 | -10/Exiles | Opened EX-Vault 3320 | -10/Exiles | Found Cloak of Protection 3359 | -10/Exiles | Warned to stay clear of 0b10 Research branches 3493 | -10/Exiles | Discovered new exit (range 10) 3515 | -10/Exiles | Left Exiles lab with Cloak of Protection 3515 | -10/Exiles | Entered Mines 3515 | -9/Mines | Accompanied by 2 allies 3525 | -9/Mines | Core integrity fell below 50% 3576 | -9/Mines | Discovered new exit (range 12) 3578 | -9/Mines | Received a Rocket Launcher from a helpful Derelict 3975 | -9/Mines | Discovered new exit (range 10) 4103 | -9/Mines | Found the Drone Emporium 4119 | -9/Mines | Found Prototype Device 4119 | -9/Mines | Identified Decoy Drone Bay 4238 | -9/Mines | Found a hidden stash of uninstalled traps 4285 | -9/Mines | Assembled infested the area 4290 | -9/Mines | Assisted by a Guerilla fighting off Assembled 4837 | -9/Mines | System corruption reached 10% 4885 | -9/Mines | Learned location of 2 exits from Materials 5031 | -9/Mines | Entered Materials 5031 | -8/Materials | Accompanied by 2 allies 5031 | -8/Materials | Evolved 4 slots: Utility x4 5032 | -8/Materials | Identified exit to Factory 5560 | -8/Materials | Garrison activated, responded to threat 5856 | -8/Materials | Lost 3 parts (1p1u1w) 6025 | -8/Materials | Discovered exit to Factory (range 4) 6354 | -8/Materials | Entered Factory 6354 | -7/Factory | Evolved 2 slots: Utility x2 6603 | -7/Factory | Discovered new exit (range 4) 6695 | -7/Factory | Crushed by falling debris 6695 | -7/Factory | System corruption reached 10% 6726 | -7/Factory | Lost 3 parts (3u) 6750 | -7/Factory | Fabricated R-06 Scavenger? 6837 | -7/Factory | Fabricated Arc Projector? 6864 | -7/Factory | Fabricated Transmission Jammer? 6879 | -7/Factory | Build established: Assassin 6881 | -7/Factory | Discovered new exit (range 8) 6881 | -7/Factory | Identified exit to Storage 6881 | -7/Factory | Identified exit to Lower Caves 6901 | -7/Factory | Entered Lower Caves 7346 | -7/Lower Caves | Learned Factory stockpile data 7530 | -7/Lower Caves | Attracted the attention of an 0b10 checkpoint 7610 | -7/Lower Caves | Encountered a Warlord checkpoint 7674 | -7/Lower Caves | Lost 4 allies 7785 | -7/Lower Caves | Discovered new exit (range 8) 8210 | -7/Lower Caves | Entered another Lower Caves area 8233 | -7/Lower Caves | Discovered new exit (range 15) 9157 | -7/Lower Caves | Discovered new exit (range 11) 9188 | -7/Lower Caves | Learned 8 Factory zone layouts 9269 | -7/Lower Caves | Learned Factory stockpile data 9320 | -7/Lower Caves | Attracted the attention of an 0b10 checkpoint 9418 | -7/Lower Caves | Entered Data Miner 9418 | -7/Data Miner | Discovered new exit (range 6) 9441 | -7/Data Miner | Met Data Miner 9462 | -7/Data Miner | Learned location of Section 7 (-2) 9462 | -7/Data Miner | Acquired the access code to Warlord's prototype stash 9479 | -7/Data Miner | Received God Mode back door access code from Data Miner 9506 | -7/Data Miner | Entered Proximity Caves 9806 | -6/Proximity Caves | Learned Factory garrison access intel 9806 | -6/Proximity Caves | Learned Extension stockpile data 9817 | -6/Proximity Caves | Learned 12 Factory zone layouts 9823 | -6/Proximity Caves | Attracted the attention of an 0b10 base 9988 | -6/Proximity Caves | Spotted B-75 Beast 10504 | -6/Proximity Caves | Discovered new exit (range 16) 10578 | -6/Proximity Caves | Entered Factory 10578 | -6/Factory | Evolved 2 slots: Utility x2 10579 | -6/Factory | Identified exit to Factory 10579 | -6/Factory | Identified exit to Extension 10581 | -6/Factory | Loaded intel: 2 garrison access locations 10687 | -6/Factory | Crushed by falling debris 10848 | -6/Factory | Fabricated Combat Drone Bay? 11078 | -6/Factory | Identified exit to Lower Caves 11200 | -6/Factory | Fabricated Cld. Aerolev Unit? 11393 | -6/Factory | Build established: Infiltrator-Gladiator 11658 | -6/Factory | Entered Extension 11912 | -6/Extension | Rescued a captive Derelict 11913 | -6/Extension | Rescued a captive Derelict 11948 | -6/Extension | Build established: Gladiator 12227 | -6/Extension | Rescued A7 12245 | -6/Extension | Rescued a captive Derelict 12246 | -6/Extension | Rescued a captive Derelict 12256 | -6/Extension | Rescued a captive Derelict 12406 | -6/Extension | Spotted B-75 Beast 12414 | -6/Extension | Allies destroyed B-75 Beast 12422 | -6/Extension | Spotted B-75 Beast 12438 | -6/Extension | Allies destroyed B-75 Beast 12473 | -6/Extension | Lost 5 allies 12520 | -6/Extension | Rescued a captive Derelict 12521 | -6/Extension | Rescued a captive Derelict 12641 | -6/Extension | Rescued a captive Derelict 12642 | -6/Extension | Rescued a captive Derelict 12718 | -6/Extension | Rescued a captive Derelict 12718 | -6/Extension | Rescued a captive Derelict 12725 | -6/Extension | Build established: Commander-Mutant 12737 | -6/Extension | Rescued a captive Derelict 12737 | -6/Extension | Rescued a captive Derelict 12776 | -6/Extension | Discovered exit to Factory (range 10) 12777 | -6/Extension | Discovered new exit (range 6) 12862 | -6/Extension | Entered Cetus 12862 | -6/Cetus | Accompanied by 17 allies (A7) 12867 | -6/Cetus | Acquired a Cetus Manufacturing Module code from A7 12893 | -6/Cetus | Spotted Cetus Guard 12893 | -6/Cetus | Spotted Cetus Guard 12897 | -6/Cetus | Spotted Cetus Guard 12899 | -6/Cetus | Spotted Cetus Guard 12915 | -6/Cetus | Allies destroyed Cetus Guard 12927 | -6/Cetus | Allies destroyed Cetus Guard 12934 | -6/Cetus | Allies destroyed Cetus Guard 12953 | -6/Cetus | Lost 11 allies 12994 | -6/Cetus | Started Cetus Manufacturing Module 13004 | -6/Cetus | Escorted A7 to Cetus Mainframe 13019 | -6/Cetus | Manufactured an Enhanced Grunt 13035 | -6/Cetus | Discovered new exit (range 16) 13044 | -6/Cetus | Manufactured an Enhanced Grunt 13060 | -6/Cetus | Spotted Cetus Guard 13061 | -6/Cetus | Spotted Cetus Guard 13063 | -6/Cetus | Discovered exit to Factory (range 22) 13066 | -6/Cetus | Spotted Cetus Guard 13066 | -6/Cetus | Spotted Cetus Guard 13069 | -6/Cetus | Manufactured an Enhanced Grunt 13069 | -6/Cetus | Allies destroyed Cetus Guard 13084 | -6/Cetus | Allies destroyed Cetus Guard 13094 | -6/Cetus | Manufactured an Enhanced Grunt 13098 | -6/Cetus | Allies destroyed Cetus Guard 13108 | -6/Cetus | Allies destroyed Cetus Guard 13119 | -6/Cetus | Manufactured an Enhanced Grunt 13125 | -6/Cetus | Met Revision 17 13143 | -6/Cetus | Lost 4 allies 13208 | -6/Cetus | Entered Archives 13208 | -6/Archives | Accompanied by 7 allies (A7) 13213 | -6/Archives | Received a hacking code to weaken MAIN.C 13250 | -6/Archives | Discovered new exit (range 25) 13276 | -6/Archives | Unable to access archive contents 13317 | -6/Archives | Discovered new exit (range 15) 13551 | -6/Archives | Discovered exit to Factory (range 15) 13862 | -6/Archives | Entered Hub_04(d) 13862 | -6/Hub_04(d) | Accompanied by 4 allies 13943 | -6/Hub_04(d) | Network Hub disabled 13998 | -6/Hub_04(d) | Lost 4 allies 13998 | -6/Hub_04(d) | Entered Factory 13998 | -5/Factory | Evolved 2 slots: Utility x2 14101 | -5/Factory | Repaired Adv. Terrain Scanner 14125 | -5/Factory | Discovered new exit (range 14) 14430 | -5/Factory | Identified exit to Factory 14595 | -5/Factory | Build established: Hacker-Mutant 14679 | -5/Factory | Fabricated Com. HERF Cannon (x1) 14811 | -5/Factory | Fabricated Combat Drone Bay? 15170 | -5/Factory | Entered Upper Caves 15221 | -5/Upper Caves | Identified exit to Upper Caves 15471 | -5/Upper Caves | Build established: Hacker-Skirmisher 15575 | -5/Upper Caves | Learned Factory interactive machine intel 15766 | -5/Upper Caves | Found DCF Scrap (14 items) 16134 | -5/Upper Caves | A Commander dispatched an escort 16150 | -5/Upper Caves | Learned Extension emergency access door positions 16150 | -5/Upper Caves | Learned Research security intel 16150 | -5/Upper Caves | Learned Armory security intel 16481 | -5/Upper Caves | Entered another Upper Caves area 16481 | -5/Upper Caves | Accompanied by 2 allies 16482 | -5/Upper Caves | Commander's escort returned to base 16482 | -5/Upper Caves | Commander's escort returned to base 16490 | -5/Upper Caves | Attracted the attention of an 0b10 checkpoint 16614 | -5/Upper Caves | Discovered exit to Factory (range 18) 16793 | -5/Upper Caves | Build established: Hacker-Mutant 16928 | -5/Upper Caves | Discovered new exit (range 103) 17131 | -5/Upper Caves | Learned location of 2 exits from Factory 17211 | -5/Upper Caves | Entered Warlord 17237 | -5/Warlord | Discovered new exit (range 20) 17259 | -5/Warlord | System corruption cleaned by Quarantine Array 17396 | -5/Warlord | Learned Research security intel 17396 | -5/Warlord | Learned Armory terminal intel 17396 | -5/Warlord | Learned Armory repair station intel 17396 | -5/Warlord | Learned Research recycling unit intel 17396 | -5/Warlord | Learned 4 Access zone layouts 17397 | -5/Warlord | Learned Testing emergency access door positions 17397 | -5/Warlord | Learned Research stockpile data 17586 | -5/Warlord | Visited the Vortex Lab 17586 | -5/Warlord | Warlord's base attacked by MAIN.C 17597 | -5/Warlord | Found Prototype Energy Gun 17599 | -5/Warlord | Found Prototype Energy Gun 17764 | -5/Warlord | Met Warlord 17779 | -5/Warlord | Opened Warlord's prototype stash 17787 | -5/Warlord | Found Prototype Device 17787 | -5/Warlord | Identified Exp. Cloaking Device 17799 | -5/Warlord | Found Prototype Device 17799 | -5/Warlord | Identified Exp. Focal Shield 17936 | -5/Warlord | Warlord forces counterattacked 17986 | -5/Warlord | Spotted Executioner 18020 | -5/Warlord | Spotted Striker 18032 | -5/Warlord | Spotted Striker 18043 | -5/Warlord | Destroyed Striker 18045 | -5/Warlord | Spotted Executioner 18069 | -5/Warlord | Lost 19 allies 18088 | -5/Warlord | Spotted Striker 18118 | -5/Warlord | Entered Proximity Caves 18118 | -4/Proximity Caves | Accompanied by 2 allies 18131 | -4/Proximity Caves | Learned location of Testing (-3) 18139 | -4/Proximity Caves | Lost 6 allies 18671 | -4/Proximity Caves | Discovered exit to Factory (range 15) 18740 | -4/Proximity Caves | Entered Factory 18740 | -4/Factory | Evolved 2 slots: Utility x2 18741 | -4/Factory | Identified exit to Research 18743 | -4/Factory | Loaded intel: 52 interactive machine locations 18844 | -4/Factory | Repaired Arm. Huge Wheel 19029 | -4/Factory | Identified exit to Upper Caves 19029 | -4/Factory | Identified exit to Armory 19068 | -4/Factory | Build established: Hacker-Assassin 19191 | -4/Factory | Entered Upper Caves 19475 | -4/Upper Caves | Build established: Hacker-Mutant 19489 | -4/Upper Caves | Acquired the password to a Derelict Tinkerer's latest research 19673 | -4/Upper Caves | Learned location of 1 exit from Research 19691 | -4/Upper Caves | Attracted the attention of an 0b10 checkpoint 19727 | -4/Upper Caves | Caught by Unaware searching for contraband prototypes 19810 | -4/Upper Caves | Discovered new exit (range 20) 19873 | -4/Upper Caves | Entered another Upper Caves area 19892 | -4/Upper Caves | Learned 4 Research zone layouts 19951 | -4/Upper Caves | Discovered exit to Research (range 33) 20063 | -4/Upper Caves | Encountered a Warlord checkpoint 20064 | -4/Upper Caves | Learned location of Quarantine (-2) 20639 | -4/Upper Caves | Discovered new exit (range 24) 20909 | -4/Upper Caves | Found Imp. Powered Armor 21016 | -4/Upper Caves | Entered Zhirov 21016 | -4/Zhirov | Discovered new exit (range 3) 21047 | -4/Zhirov | Met Zhirov 21079 | -4/Zhirov | Learned location of Command (-1) 21088 | -4/Zhirov | Zhirov requested help retrieving the SGEMP Prototype 21113 | -4/Zhirov | Found Alien Artifact 21113 | -4/Zhirov | Identified Integrated Dissipator 21113 | -4/Zhirov | Installed Integrated Dissipator, increased core heat dissipation (+20) 21134 | -4/Zhirov | Found Alien Artifact 21290 | -4/Zhirov | Entered Proximity Caves 21300 | -3/Proximity Caves | Unaware initiated a cargo recovery operation 21302 | -3/Proximity Caves | System corruption reached 10% 21687 | -3/Proximity Caves | Received a Behemoth hack from an annoying Tinkerer 22023 | -3/Proximity Caves | Attracted the attention of an 0b10 outpost 22213 | -3/Proximity Caves | Attracted the attention of an 0b10 checkpoint 22407 | -3/Proximity Caves | Discovered exit to Research (range 7) 22487 | -3/Proximity Caves | Entered Research 22487 | -3/Research | Evolved 2 slots: Utility x2 22488 | -3/Research | Identified exit to Research 22492 | -3/Research | Loaded intel: 4 recycling unit locations 22687 | -3/Research | Revision forces began assault on 0b10 22736 | -3/Research | Met up with Revision 17++ 22772 | -3/Research | Spotted B-86 Titan 22857 | -3/Research | Lost 3 allies 22901 | -3/Research | Destroyed B-86 Titan 23187 | -3/Research | Research terminal network offline 23445 | -3/Research | Discovered new exit (range 12) 23475 | -3/Research | Entered another Research area 23475 | -2/Research | Warlord forces began assault on 0b10 23475 | -2/Research | Evolved 2 slots: Utility x2 23531 | -2/Research | Identified exit to Access 23585 | -2/Research | Research machine network offline 23778 | -2/Research | Found Prototype Launcher 23778 | -2/Research | Identified Adv. Micro-nuke Launcher 23834 | -2/Research | Spotted Striker 23843 | -2/Research | Borebot progress halted 23860 | -2/Research | Destroyed Striker 23995 | -2/Research | Borebot progress halted 24113 | -2/Research | Borebot progress halted 24118 | -2/Research | Build established: Wizard-Skirmisher 24271 | -2/Research | Entered Access 24271 | -1/Access | Evolved 2 slots: Utility x2 24290 | -1/Access | Energy Cycler disabled 24394 | -1/Access | Identified exit to Command 24394 | -1/Access | Identified exit to Surface 24487 | -1/Access | Build established: Wizard-Assassin 25038 | -1/Access | Incoming investigation squad redirected 25039 | -1/Access | Fabricated Neutron Missile Launcher? 25117 | -1/Access | Entered Command 25263 | -1/Command | Phase Generator disabled 25343 | -1/Command | Incoming investigation squad redirected 25506 | -1/Command | Spotted B-99 Colossus 25709 | -1/Command | Spotted B-99 Colossus 25729 | -1/Command | Build established: Wizard-Skirmisher 25810 | -1/Command | Lost 18 parts (1p1n14u2w) 25904 | -1/Command | Core integrity fell below 50% 25941 | -1/Command | Disengaged cave seal 25941 | -1/Command | Derelicts emerged from the dark tunnel 25942 | -1/Command | Welcomed Warlord to Command 26098 | -1/Command | Spotted Striker 26098 | -1/Command | Spotted Alpha 7 26098 | -1/Command | Spotted Striker 26098 | -1/Command | Spotted Alpha 7 26099 | -1/Command | Spotted Executioner 26099 | -1/Command | Spotted Executioner 26100 | -1/Command | Spotted Executioner 26102 | -1/Command | Spotted Executioner 26111 | -1/Command | Spotted B-99 Colossus 26113 | -1/Command | Spotted B-99 Colossus 26119 | -1/Command | Destroyed Alpha 7 26129 | -1/Command | Destroyed B-99 Colossus 26158 | -1/Command | Discovered exit to Surface (range 16) 26178 | -1/Command | Lost 6 parts (1n4u1w) 26184 | -1/Command | Lost 12 allies 26184 | -1/Command | Warlord destroyed during the assault 26211 | *** | Escaped! Last Messages --------------- 26175_ The unstable cave ceiling collapses. 26184_ Warlord: "IMPOSS00101101 01101001 01010111 01001001 01001100 01001100 01110010 01100101 01110100 01110101 01110010 01101110" 26184_ Warlord destroyed. 26189_ Destroyed Imp. Antigrav System. 26189_ Adv. Micro-nuke Launcher destroyed. 26190_ The unstable cave ceiling collapses. 26192_ P-80 Master suffers critical hit (Blast). 26192_ Destroyed Adv. Remote Datajack. 26195_ Destroyed Unknown Reactor. 26197_ The unstable cave ceiling collapses. 26198_ Destroyed Unknown Storage. 26198_ Slug penetrates P-80 Master. 26198_ P-80 Master destroyed. 26203_ Hacking Suite destroyed. 26206_ System corrupted: Matter fused (-8). 26207_ P-80 Master destroyed. 26209_ Hdn. Centrium Wheel destroyed. [Achievement: Inspector Gadget] Map ----- +----------------------------------------------------+ | "????????# ???????? # #??????????? | | ????????# ???????? # #??????? ??? | | ????????# #????????? ?# !! #????## ?? | | ????????# #????????? ?? !! !#??? | | ????????# #?????????# #?? !! #? | | ????????# #?????????# #?? ?? | | ??????? # #?????????# #?? ??? | | #?????? + ########### ####+##### | | #???????# | | #?????### % | | #######"# ############## ### | | # ## #????????????# # | | # T ##*=% #????????????# # | | " |%=[ = ######???????# # | | =" " ##= #???????# # | | # ## #???????# ####### | | / ## ###############???????# #?????# | | ######### #?????????????????????# ##????# | | ##??????# #?????????????????????# #????# | | ######## #??????##############?# #??###!! | | #??????# #?#####+######"" ! | | #??????# #?# ##! | | ### ####+#??????# ^ ^ ^ #?#= ## | | #####%!#???????????# #?# *#### | | # #???????????# ^ #?# #### | | # #???????????# @" ^ #?# #### | | # #???????????# "" #?# #### | | # #???????????# #?# ! "" #### | | # #???????????# ^ #?# """ #?## | | # ##+#+#?????## ^^l ^ #?# T" + | | / #?????# #?# """ #### | | # #?????## % #?# "" #### | | ######+##??????## ####?# ? #### | | ## ???#???## ^^ ##??# ? + | | ## #????# #??#######+?####### | | ## """" #????# %% #??????????#?####?# | | ## """" #????# # %%##????????????#?#### | | ## """" #????# ] % #???????????####### | | ## """" #????# g ###????????????####?# | | ## #????# / #?????????? | | ## #????? =% [ ##?????????? ####### | | "###"#+#+#######?????##%% = ! #???????????###### | | ##?##" #???????????# !! ##???????????????# | | ????## #???????????# !! !# #?????????? ? # | | ?????# #??????????## !* !# #####????????? ?# | | ?????# #??????????# [!/! *% #? ?? # | | ?????# %###????????##! !!! * # ???? # | | ?????# #?#########"=!==*[ #? ? ? # | | ?????# ### "!=[=== #?? ? # | | ?????# "## * #!! %!! # ?"" "" #/# | +----------------------------------------------------+ Best States ------------- Heat Dissipation 118 Energy Generation 51 Energy Capacity 380 Matter Stores 300 Matter Capacity 300 Sight Range 16 Robot Scan Range 20 Terrain Scan Range 20 Terrain Scan Density 210 Jamming Range 16 Cloak Strength 5 Power Amplification 30 Additional Mass Support 9 Armor Coverage 1225 Resistance: KI 30 Propulsion Shielding 90 Weapon Cycling 25 Melee Speed Boost 40 Evasion (%) 55 Targeting Accuracy 8 Melee Accuracy 8 Core Analysis 6 Recoil Reduction 1 Kinecelleration 40 Offensive Hacking 66 Defensive Hacking 36 Trap Extractor Capacity 6 Item Schematics ----------------- Imp. Corruption Screen | -7/Factory | Hacked Combat Drone Bay | -7/Data Miner | Free Lgt. Regenerative Plating | -7/Data Miner | Free Cld. Aerolev Unit | -7/Data Miner | Free Exp. Targeting Computer | -7/Data Miner | Free Imp. Lightning Gun | -7/Data Miner | Free Field Propulsion Drive | -7/Data Miner | Free Imp. Recalibrator | -7/Data Miner | Free Tesla Rifle | -7/Data Miner | Free Hvy. Pick | -7/Data Miner | Free Nanoactuators | -7/Data Miner | Free Adv. Focal Shield | -5/Factory | Hacked Centrium Medium Armor Plating | -5/Factory | Scanalyzed Micro-nuke Launcher | -4/Factory | Hacked Assault Drone Bay | -4/Zhirov | Free Exp. Heat Sink | -4/Zhirov | Free Exp. Optical Array | -4/Zhirov | Free Imp. Arc Thrower | -4/Zhirov | Free Neutron Missile Launcher | -2/Research | Hacked Robot Schematics ------------------ G-47 Trooper | -7/Data Miner | Free G-50 Soldier | -7/Data Miner | Free M-28 Smith | -7/Data Miner | Free S-27 Virus | -7/Data Miner | Free Fabricated ------------ R-06 Scavenger | x2 | -7/Factory | Preloaded Arc Projector | x2 | -7/Factory | Preloaded Transmission Jammer | x2 | -7/Factory | Preloaded Combat Drone Bay | x1 | -6/Factory Cld. Aerolev Unit | x1 | -6/Factory Com. HERF Cannon | x1 | -5/Factory | Preloaded Combat Drone Bay | x1 | -5/Factory Neutron Missile Launcher | x1 | -1/Access Alien Tech Used ----------------- Integrated Dissipator Achievements -------------- Inspector Gadget Challenges ------------ None Game ------ Seed HackingForceShearcannon Manual? 0 Play Time 06:07:35 Cumulative 1130.2 hours Start 2024.09.19 @ 19:53:12 End 2024.10.04 @ 22:34:56 Sessions 11 Manual Loads 0 Difficulty Rogue Special Mode None Game No. 242 Rogue 210 Adventurer 31 Explorer 1 Win Type 0 Total 54 Types 35/1/9/7/0/0/2/0/0 Lore% 68 Gallery% 86 Achievement% 81 Wizard Run 0 Options --------- Layout 1 ASCII 0 Keyboard 0 Movement Arrows Keybinds 0 Fullscreen 1 Font 24/Terminus Map View 50x40 Zoom Use 0% Tactical HUD 1 Map Filters NONE Filters NONE Steam 1 RUN: eb1cdab9-fed5-4f68-ad41-43056c7907f5